fUST/lending_fUST_20250227
["ID","MTS","AMOUNT","RATE_DAILY","PERIOD"]
[354626924,1740597038085,-500.0,0.00052054,120]
[354626925,1740597038094,-500.0,0.00052054,120]
[354626926,1740597038104,-500.0,0.00052054,120]
[354626927,1740597038114,-500.0,0.00052054,120]
[354626928,1740597038123,-610.98,0.00052054,120]
[354626929,1740597038133,-500.0,0.00052054,120]
[354626930,1740597038142,-500.0,0.00052054,120]
[354626931,1740597038152,-500.0,0.00052054,120]
[354626932,1740597038162,-500.0,0.00052054,120]
[354626933,1740597038172,-500.0,0.00052054,120]
[354626934,1740597038182,-500.0,0.00052054,120]
[354626935,1740597038192,-500.0,0.00052054,120]
[354626936,1740597038202,-1843.18854245,0.00052054,120]
[354626937,1740597038298,-654.49145755,0.00052054,120]
[354626938,1740597038308,-190.05854245,0.00052054,120]
[354626939,1740597038321,-767.96145755,0.00052054,120]
[354626941,1740597038332,-500.0,0.00052054,120]
[354626943,1740597038341,-500.0,0.00052054,120]
[354626945,1740597038351,-500.0,0.00052054,120]
[354626947,1740597038360,-500.0,0.00052054,120]
[354626949,1740597038374,-500.0,0.00052054,120]
[354626951,1740597038383,-500.0,0.00052054,120]
[354626953,1740597038392,-3170.12125,0.00052228,28]
[354626955,1740597038402,-21478.45,0.00052327,120]
[354626957,1740597038413,-500.0,0.00052328,120]
[354626959,1740597038423,-429.22,0.00052328,120]
[354626961,1740597038433,-1789.98,0.00052328,120]
[354626963,1740597038443,-500.0,0.00052328,120]
[354626965,1740597038452,-455.27810153,0.00052328,120]
[354626967,1740597038462,-500.0,0.00052328,120]
[354626969,1740597038472,-500.0,0.00052328,30]
[354626971,1740597038481,-788.12,0.00052328,120]
[354626973,1740597038491,-500.0,0.00052328,120]
[354626975,1740597038503,-500.0,0.00052328,120]
[354626977,1740597038512,-529.39,0.00052328,120]
[354626979,1740597038521,-500.0,0.00052328,120]
[354626981,1740597038530,-500.0,0.00052328,120]
[354626983,1740597038540,-500.0,0.00052328,120]
[354626985,1740597038549,-500.0,0.00052328,120]
[354626987,1740597038559,-3949.12,0.00052328,120]
[354626989,1740597038568,-500.0,0.00052328,120]
[354626991,1740597038577,-500.0,0.00052328,120]
[354626993,1740597038587,-500.0,0.00052328,120]
[354626995,1740597038596,-637.72,0.00052328,120]
[354626997,1740597038606,-500.0,0.00052328,120]
[354626999,1740597038615,-500.0,0.00052328,120]
[354627001,1740597038626,-527.7,0.00052328,120]
[354627003,1740597038636,-500.0,0.00052328,120]
[354627006,1740597038646,-500.0,0.00052328,120]
[354627007,1740597038655,-372.3,0.00052328,120]
[354627009,1740597038665,-500.0,0.00052328,120]
[354627011,1740597038674,-500.0,0.00052328,120]
[354627013,1740597038684,-254.32,0.00052328,120]
[354627015,1740597038693,-478.37,0.00052328,120]
[354627017,1740597038702,-316.96,0.00052328,120]
[354627020,1740597038712,-500.0,0.00052328,120]
[354627022,1740597038721,-500.0,0.00052328,120]
[354627024,1740597038730,-470.99,0.00052328,120]
[354627025,1740597038741,-500.0,0.00052328,120]
[354627028,1740597038753,-1774.78,0.00052328,6]
[354627030,1740597038763,-500.0,0.00052328,120]
[354627032,1740597038772,-528.01,0.00052328,120]
[354627034,1740597038781,-500.0,0.00052328,120]
[354627035,1740597038791,-500.0,0.00052328,120]
[354627038,1740597038801,-500.0,0.00052328,120]
[354627040,1740597038810,-500.0,0.00052328,120]
[354627041,1740597038819,-500.0,0.00052328,120]
[354627044,1740597038829,-408.21,0.00052328,120]
[354627046,1740597038839,-500.0,0.00052328,120]
[354627048,1740597038848,-500.0,0.00052328,120]
[354627050,1740597038857,-500.0,0.00052328,120]
[354627052,1740597038867,-500.0,0.00052328,120]
[354627054,1740597038876,-1313.2,0.00052328,120]
[354627056,1740597038885,-1562.7,0.00052328,120]
[354627058,1740597038894,-500.0,0.00052328,120]
[354627060,1740597038904,-500.0,0.00052328,120]
[354627062,1740597038913,-500.0,0.00052328,120]
[354627064,1740597038923,-500.0,0.00052328,120]
[354627066,1740597038932,-500.0,0.00052328,120]
[354627068,1740597038942,-500.0,0.00052328,120]
[354627070,1740597038952,-649.59,0.00052328,120]
[354627072,1740597038961,-500.0,0.00052328,120]
[354627074,1740597038970,-500.0,0.00052328,120]
[354627076,1740597038979,-500.0,0.00052328,120]
[354627078,1740597038989,-500.0,0.00052328,120]
[354627080,1740597039004,-500.0,0.00052328,120]
[354627082,1740597039013,-500.0,0.00052328,120]
[354627083,1740597039023,-2497.68,0.00052328,120]
[354627085,1740597039032,-958.02,0.00052328,120]
[354627087,1740597039042,-500.0,0.00052328,120]
[354627089,1740597039051,-500.0,0.00052328,120]
[354627091,1740597039060,-14033.19988734,0.00052602,7]
[354627093,1740597039069,-500.0,0.00052602,120]
[354627095,1740597039079,-500.0,0.00052602,120]
[354627097,1740597039088,-347.07,0.00052602,120]
[354627099,1740597039097,-1789.98,0.00052602,120]
[354627101,1740597039106,-500.0,0.00052602,120]
[354627103,1740597039116,-243.32,0.00052602,30]
[354627105,1740597039125,-788.12,0.00052602,120]
[354627107,1740597039134,-500.0,0.00052602,120]
[354627109,1740597039144,-529.39,0.00052602,120]
[354627111,1740597039153,-500.0,0.00052602,120]
[354627114,1740597039162,-500.0,0.00052602,120]
[354627116,1740597039172,-500.0,0.00052602,120]
[354627118,1740597039181,-439.2,0.00052602,120]
[354627120,1740597039190,-3949.12,0.00052602,120]
[354627122,1740597039200,-500.0,0.00052602,120]
[354627124,1740597039210,-500.0,0.00052602,120]
[354627126,1740597039219,-500.0,0.00052602,120]
[354627128,1740597039228,-500.0,0.00052602,120]
[354627130,1740597039240,-500.0,0.00052602,120]
[354627132,1740597039252,-500.0,0.00052602,120]
[354627134,1740597039261,-555.39,0.00052602,120]
[354627136,1740597039270,-539.09,0.00052602,120]
[354627138,1740597039279,-500.0,0.00052602,120]
[354627140,1740597039288,-500.0,0.00052602,120]
[354627142,1740597039298,-500.0,0.00052602,120]
[354627144,1740597039307,-500.0,0.00052602,120]
[354627146,1740597039317,-1774.78,0.00052602,6]
[354627148,1740597039326,-500.0,0.00052602,120]
[354627150,1740597039336,-528.01,0.00052602,120]
[354627152,1740597039346,-500.0,0.00052602,120]
[354627154,1740597039355,-500.0,0.00052602,120]
[354627156,1740597039366,-500.0,0.00052602,120]
[354627158,1740597039376,-500.0,0.00052602,120]
[354627160,1740597039386,-500.0,0.00052602,120]
[354627162,1740597039397,-542.73,0.00052602,120]
[354627164,1740597039407,-500.0,0.00052602,120]
[354627166,1740597039416,-500.0,0.00052602,120]
[354627168,1740597039425,-500.0,0.00052602,120]
[354627170,1740597039435,-1313.2,0.00052602,120]
[354627172,1740597039445,-1562.7,0.00052602,120]
[354627174,1740597039454,-211.69568199,0.00052602,120]
[354627176,1740597039466,-500.0,0.00052602,120]
[354627178,1740597039475,-609.6,0.00052602,120]
[354627180,1740597039484,-500.0,0.00052602,120]
[354627182,1740597039493,-500.0,0.00052602,120]
[354627184,1740597039507,-286.56,0.00052602,120]
[354627186,1740597039516,-500.0,0.00052602,120]
[354627188,1740597039526,-500.0,0.00052602,120]
[354627190,1740597039535,-500.0,0.00052602,120]
[354627192,1740597039544,-500.0,0.00052602,120]
[354627194,1740597039554,-2497.68,0.00052602,120]
[354627196,1740597039563,-500.0,0.00052602,120]
[354627199,1740597039572,-958.02,0.00052602,120]
[354627200,1740597039581,-500.0,0.00052602,120]
[354627203,1740597039591,-151.0,0.000527,26]
[354627205,1740597039600,-179.17017514,0.00052776,2]
[354627207,1740597039609,-591.42993932,0.00052866,5]
[354627209,1740597039618,-500.0,0.00052873,7]
[354627211,1740597039628,-500.0,0.00052876,120]
[354627213,1740597039638,-500.0,0.00052876,120]
[354627215,1740597039647,-500.0,0.00052876,120]
[354627217,1740597039656,-500.0,0.00052876,120]
[354627219,1740597039665,-500.0,0.00052876,120]
[354627221,1740597039675,-500.0,0.00052876,120]
[354627223,1740597039684,-300.0,0.00052876,120]
[354627225,1740597039693,-521.21,0.00052876,120]
[354627227,1740597039702,-500.0,0.00052876,120]
[354627228,1740597039712,-500.0,0.00052876,120]
[354627230,1740597039720,-500.0,0.00052876,120]
[354627232,1740597039729,-500.0,0.00052876,120]
[354627235,1740597039739,-246.65719992,0.00052876,120]
[354627237,1740597039749,-500.0,0.00052876,120]
[354627238,1740597039758,-389.09,0.00052876,120]
[354627240,1740597039767,-500.0,0.00052876,120]
[354627243,1740597039776,-500.0,0.00052876,120]
[354627245,1740597039786,-500.0,0.00052876,120]
[354627247,1740597039796,-500.0,0.00052876,14]
[354627249,1740597039807,-500.0,0.00052876,120]
[354627251,1740597039819,-500.0,0.00052876,120]
[354627253,1740597039829,-500.0,0.00052876,120]
[354627255,1740597039838,-500.0,0.00052876,120]
[354627257,1740597039847,-500.0,0.00052876,120]
[354627259,1740597039856,-981.49,0.00052876,120]
[354627261,1740597039866,-500.0,0.00052876,120]
[354627263,1740597039875,-500.0,0.00052876,120]
[354627265,1740597039884,-500.0,0.00052876,120]
[354627267,1740597039894,-505.85,0.00052876,120]
[354627269,1740597039903,-500.0,0.00052876,120]
[354627271,1740597039913,-519.76,0.00052876,120]
[354627273,1740597039922,-500.0,0.00052876,120]
[354627275,1740597039932,-500.0,0.00052876,120]
[354627277,1740597039941,-500.0,0.00052876,120]
[354627279,1740597039951,-500.0,0.00052876,120]
[354627282,1740597039960,-500.0,0.00052876,120]
[354627284,1740597039969,-500.0,0.00052876,120]
[354627286,1740597039978,-499.63,0.00052876,120]
[354627289,1740597039988,-635.98,0.00052876,120]
[354627291,1740597039999,-500.0,0.00052876,120]
[354627293,1740597040008,-500.0,0.00052876,120]
[354627294,1740597040017,-553.79775318,0.00052876,120]
[354627298,1740597040026,-198.7,0.00052876,15]
[354627301,1740597040034,-500.0,0.00052876,120]
[354627303,1740597040044,-217.83,0.00052876,120]
[354627304,1740597040053,-500.0,0.00052876,120]
[354627306,1740597040062,-598.1,0.00052876,120]
[354627308,1740597040071,-500.0,0.00052876,120]
[354627311,1740597040081,-513.17,0.00052876,120]
[354627313,1740597040090,-500.0,0.00052876,120]
[354627316,1740597040099,-192.89,0.00052876,120]
[354627318,1740597040109,-500.0,0.00052876,120]
[354627320,1740597040118,-500.0,0.00052876,120]
[354627323,1740597040128,-500.0,0.00052876,120]
[354627325,1740597040137,-205.03,0.00052876,120]
[354627327,1740597040147,-500.0,0.00052876,120]
[354627329,1740597040156,-502.01351534,0.00052876,120]
[354627331,1740597040166,-500.0,0.00052876,120]
[354627332,1740597040175,-500.0,0.00052876,120]
[354627334,1740597040184,-500.0,0.00052876,120]
[354627336,1740597040193,-500.0,0.00052876,120]
[354627338,1740597040202,-500.0,0.00052876,120]
[354627341,1740597040212,-500.0,0.00052876,120]
[354627343,1740597040222,-217.22,0.00052876,7]
[354627345,1740597040231,-500.0,0.00052876,120]
[354627347,1740597040240,-562.34,0.00052876,120]
[354627348,1740597040250,-500.0,0.00052876,120]
[354627350,1740597040260,-500.0,0.00052876,120]
[354627353,1740597040270,-500.0,0.00052876,120]
[354627355,1740597040280,-523.47,0.00052876,120]
[354627357,1740597040290,-500.0,0.00052876,120]
[354627359,1740597040300,-500.0,0.00052876,120]
[354627361,1740597040309,-500.0,0.00052876,120]
[354627363,1740597040319,-334.97,0.00052876,120]
[354627365,1740597040328,-1059.27,0.00052876,120]
[354627367,1740597040338,-500.0,0.00052876,120]
[354627369,1740597040347,-1989.74,0.00052876,120]
[354627371,1740597040357,-500.0,0.00052876,120]
[354627373,1740597040370,-500.0,0.00052876,120]
[354627375,1740597040379,-500.0,0.00052876,120]
[354627377,1740597040393,-500.0,0.00052876,120]
[354627379,1740597040403,-300.08,0.00052876,120]
[354627381,1740597040415,-500.0,0.00052876,120]
[354627383,1740597040424,-500.0,0.00052876,120]
[354627385,1740597040434,-506.82879971,0.00052876,120]
[354627387,1740597040444,-500.0,0.00052876,120]
[354627389,1740597040453,-634.29,0.00052876,120]
[354627391,1740597040464,-600.07,0.00052876,120]
[354627393,1740597040473,-500.0,0.00052876,120]
[354627395,1740597040483,-500.0,0.00052876,120]
[354627397,1740597040492,-500.0,0.00052876,120]
[354627399,1740597040503,-500.0,0.00052876,120]
[354627401,1740597040513,-500.0,0.00052876,120]
[354627403,1740597040522,-500.0,0.00052876,120]
[354627405,1740597040532,-500.0,0.00052876,120]
[354627407,1740597040541,-500.0,0.00052876,120]
[354627410,1740597040551,-500.0,0.00052876,120]
[354627412,1740597040561,-500.0,0.00052876,120]
[354627414,1740597040570,-500.0,0.00052876,120]
[354627416,1740597040580,-500.0,0.00052876,120]
[354627418,1740597040590,-633.92,0.00052876,120]
[354627420,1740597040599,-500.0,0.00052876,120]
[354627422,1740597040609,-500.0,0.00052876,120]
[354627424,1740597040618,-500.0,0.00052876,120]
[354627426,1740597040627,-500.0,0.00052876,120]
[354627428,1740597040636,-500.0,0.00052876,120]
[354627430,1740597040645,-500.0,0.00052876,120]
[354627432,1740597040654,-500.0,0.00052876,120]
[354627434,1740597040663,-1100.62,0.00052876,120]
[354627436,1740597040672,-500.0,0.00052876,120]
[354627438,1740597040682,-500.0,0.00052876,120]
[354627440,1740597040691,-500.0,0.00052876,120]
[354627442,1740597040700,-500.0,0.00052876,120]
[354627444,1740597040710,-500.0,0.00052876,120]
[354627446,1740597040719,-746.33,0.00052876,120]
[354627448,1740597040728,-500.0,0.00052876,120]
[354627450,1740597040737,-689.98,0.00052876,120]
[354627452,1740597040746,-500.0,0.00052876,120]
[354627454,1740597040757,-500.0,0.00052876,120]
[354627456,1740597040766,-500.0,0.00052876,120]
[354627458,1740597040775,-500.0,0.00052876,120]
[354627460,1740597040785,-500.0,0.00052876,120]
[354627462,1740597040794,-500.0,0.00052876,120]
[354627464,1740597040804,-500.0,0.00052876,120]
[354627466,1740597040813,-212.13,0.00052876,120]
[354627468,1740597040823,-27669.24,0.00052876,7]
[354627470,1740597040832,-343.74,0.00052876,120]
[354627472,1740597040841,-500.0,0.00052876,120]
[354627474,1740597040850,-1789.98,0.00052876,120]
[354627476,1740597040859,-500.0,0.00052876,120]
[354627478,1740597040869,-788.12,0.00052876,120]
[354627480,1740597040878,-500.0,0.00052876,120]
[354627482,1740597040887,-529.39,0.00052876,120]
[354627484,1740597040896,-500.0,0.00052876,120]
[354627486,1740597040905,-500.0,0.00052876,120]
[354627488,1740597040915,-500.0,0.00052876,120]
[354627490,1740597040925,-3949.12,0.00052876,120]
[354627492,1740597040934,-500.0,0.00052876,120]
[354627494,1740597040944,-500.0,0.00052876,120]
[354627496,1740597040954,-500.0,0.00052876,120]
[354627498,1740597040964,-500.0,0.00052876,120]
[354627500,1740597040974,-500.0,0.00052876,120]
[354627502,1740597040983,-500.0,0.00052876,120]
[354627504,1740597040993,-500.0,0.00052876,120]
[354627506,1740597041005,-411.65,0.00052876,120]
[354627508,1740597041014,-204.51,0.00052876,120]
[354627510,1740597041024,-500.0,0.00052876,120]
[354627512,1740597041034,-1774.78,0.00052876,6]
[354627514,1740597041043,-500.0,0.00052876,120]
[354627516,1740597041053,-528.01,0.00052876,120]
[354627518,1740597041062,-500.0,0.00052876,120]
[354627520,1740597041071,-500.0,0.00052876,120]
[354627522,1740597041081,-500.0,0.00052876,120]
[354627524,1740597041090,-500.0,0.00052876,120]
[354627526,1740597041099,-500.0,0.00052876,120]
[354627528,1740597041108,-500.0,0.00052876,120]
[354627530,1740597041117,-500.0,0.00052876,120]
[354627532,1740597041127,-1313.2,0.00052876,120]
[354627534,1740597041136,-1562.7,0.00052876,120]
[354627536,1740597041145,-500.0,0.00052876,120]
[354627538,1740597041155,-251.55,0.00052876,120]
[354627540,1740597041165,-500.0,0.00052876,120]
[354627542,1740597041174,-500.0,0.00052876,120]
[354627544,1740597041183,-500.0,0.00052876,120]
[354627546,1740597041193,-500.0,0.00052876,120]
[354627548,1740597041203,-500.0,0.00052876,120]
[354627550,1740597041212,-2497.68,0.00052876,120]
[354627552,1740597041222,-500.0,0.00052876,120]
[354627554,1740597041231,-958.02,0.00052876,120]
[354627556,1740597041240,-502.49,0.00052876,120]
[354627558,1740597041250,-151.0,0.000529,25]
[354627560,1740597041261,-783.91473892,0.000529,12]
[354627562,1740597041270,-162.01,0.000529,30]
[354627564,1740597041279,-1174.57,0.000529,30]
[354627566,1740597041289,-1120.42,0.000529,30]
[354627568,1740597041299,-151.0,0.00053,23]
[354627570,1740597041309,-151.0,0.000531,28]
[354627572,1740597041319,-591.42993932,0.0005314,5]
[354627574,1740597041329,-266.58,0.0005315,120]
[354627576,1740597041339,-500.0,0.0005315,120]
[354627578,1740597041349,-500.0,0.0005315,120]
[354627580,1740597041359,-500.0,0.0005315,120]
[354627582,1740597041372,-340.86,0.0005315,120]
[354627584,1740597041382,-500.0,0.0005315,120]
[354627586,1740597041393,-297.56,0.0005315,120]
[354627588,1740597041404,-500.0,0.0005315,120]
[354627590,1740597041415,-165.98,0.0005315,14]
[354627592,1740597041426,-500.0,0.0005315,120]
[354627594,1740597041436,-500.0,0.0005315,120]
[354627596,1740597041445,-500.0,0.0005315,120]
[354627598,1740597041454,-981.49,0.0005315,120]
[354627600,1740597041466,-500.0,0.0005315,120]
[354627603,1740597041476,-158.5,0.0005315,120]
[354627605,1740597041486,-500.0,0.0005315,120]
[354627607,1740597041496,-505.85,0.0005315,120]
[354627609,1740597041509,-500.0,0.0005315,120]
[354627610,1740597041518,-500.0,0.0005315,120]
[354627612,1740597041527,-427.89172662,0.0005315,120]
[354627633,1740597041704,-72.10827338,0.0005315,120]
[354627635,1740597041714,-500.0,0.0005315,120]
[354627637,1740597041724,-500.0,0.0005315,120]
[354627639,1740597041734,-153.85,0.0005315,120]
[354627641,1740597041743,-137.90172962,0.0005315,120]
[354627647,1740597041795,-500.0,0.00052054,120]
[354627649,1740597041804,-362.09827038,0.0005315,120]
[354627651,1740597041814,-598.1,0.0005315,120]
[354627653,1740597041823,-500.0,0.0005315,120]
[354627655,1740597041832,-500.0,0.0005315,120]
[354627657,1740597041842,-500.0,0.0005315,120]
[354627659,1740597041851,-500.0,0.0005315,120]
[354627661,1740597041861,-411.36,0.0005315,120]
[354627663,1740597041870,-500.0,0.0005315,120]
[354627665,1740597041879,-500.0,0.0005315,120]
[354627667,1740597041889,-500.0,0.0005315,120]
[354627669,1740597041898,-500.0,0.0005315,120]
[354627671,1740597041907,-500.0,0.0005315,120]
[354627673,1740597041917,-217.22,0.0005315,7]
[354627675,1740597041926,-500.0,0.0005315,120]
[354627677,1740597041936,-500.0,0.0005315,120]
[354627679,1740597041945,-500.0,0.0005315,120]
[354627681,1740597041954,-162.81,0.0005315,120]
[354627683,1740597041964,-500.0,0.0005315,120]
[354627685,1740597041973,-500.0,0.0005315,120]
[354627687,1740597041982,-488.96,0.0005315,120]
[354627689,1740597041992,-1059.27,0.0005315,120]
[354627691,1740597042001,-500.0,0.0005315,120]
[354627693,1740597042011,-1989.74,0.0005315,120]
[354627695,1740597042021,-500.0,0.0005315,120]
[354627697,1740597042030,-500.0,0.0005315,120]
[354627699,1740597042040,-500.0,0.0005315,120]
[354627701,1740597042050,-500.0,0.0005315,120]
[354627703,1740597042059,-500.0,0.0005315,120]
[354627705,1740597042068,-600.07,0.0005315,120]
[354627707,1740597042078,-500.0,0.0005315,120]
[354627709,1740597042089,-500.0,0.0005315,120]
[354627711,1740597042099,-500.0,0.0005315,120]
[354627713,1740597042109,-644.97,0.0005315,120]
[354627715,1740597042119,-500.0,0.0005315,120]
[354627717,1740597042128,-500.0,0.0005315,120]
[354627720,1740597042139,-499.68,0.0005315,120]
[354627721,1740597042149,-500.0,0.0005315,120]
[354627724,1740597042160,-633.92,0.0005315,120]
[354627726,1740597042171,-500.0,0.0005315,120]
[354627728,1740597042182,-500.0,0.0005315,120]
[354627730,1740597042192,-500.0,0.0005315,120]
[354627732,1740597042202,-500.0,0.0005315,120]
[354627734,1740597042212,-500.0,0.0005315,120]
[354627736,1740597042222,-1100.62,0.0005315,120]
[354627738,1740597042232,-500.0,0.0005315,120]
[354627740,1740597042242,-500.0,0.0005315,120]
[354627742,1740597042256,-500.0,0.0005315,120]
[354627744,1740597042268,-434.24,0.0005315,120]
[354627746,1740597042279,-500.0,0.0005315,120]
[354627748,1740597042290,-746.33,0.0005315,120]
[354627750,1740597042300,-340.72,0.0005315,120]
[354627752,1740597042311,-689.98,0.0005315,120]
[354627753,1740597042321,-500.0,0.0005315,120]
[354627755,1740597042332,-500.0,0.0005315,120]
[354627757,1740597042342,-500.0,0.0005315,120]
[354627759,1740597042352,-500.0,0.0005315,120]
[354627761,1740597042364,-500.0,0.0005315,120]
[354627763,1740597042378,-500.0,0.0005315,120]
[354627765,1740597042388,-500.0,0.0005315,120]
[354627767,1740597042398,-27669.24,0.0005315,7]
[354627769,1740597042408,-500.0,0.0005315,120]
[354627771,1740597042419,-1789.98,0.0005315,120]
[354627773,1740597042428,-500.0,0.0005315,120]
[354627775,1740597042437,-788.12,0.0005315,120]
[354627777,1740597042448,-500.0,0.0005315,120]
[354627779,1740597042457,-529.39,0.0005315,120]
[354627781,1740597042467,-256.59618767,0.0005315,120]
[354627783,1740597042476,-500.0,0.0005315,120]
[354627786,1740597042486,-500.0,0.0005315,120]
[354627787,1740597042496,-3949.12,0.0005315,120]
[354627790,1740597042512,-500.0,0.0005315,120]
[354627791,1740597042521,-294.05,0.0005315,120]
[354627793,1740597042531,-500.0,0.0005315,120]
[354627796,1740597042541,-500.0,0.0005315,120]
[354627797,1740597042551,-500.0,0.0005315,120]
[354627799,1740597042560,-500.0,0.0005315,120]
[354627801,1740597042570,-500.0,0.0005315,120]
[354627803,1740597042580,-500.0,0.0005315,120]
[354627805,1740597042590,-1774.78,0.0005315,6]
[354627807,1740597042599,-500.0,0.0005315,120]
[354627808,1740597042609,-528.01,0.0005315,120]
[354627809,1740597042618,-500.0,0.0005315,120]
[354627810,1740597042628,-500.0,0.0005315,120]
[354627811,1740597042637,-500.0,0.0005315,120]
[354627812,1740597042646,-500.0,0.0005315,120]
[354627813,1740597042659,-500.0,0.0005315,120]
[354627814,1740597042668,-500.0,0.0005315,120]
[354627815,1740597042678,-500.0,0.0005315,120]
[354627816,1740597042687,-1313.2,0.0005315,120]
[354627817,1740597042697,-1562.7,0.0005315,120]
[354627819,1740597042706,-500.0,0.0005315,120]
[354627820,1740597042716,-500.0,0.0005315,120]
[354627822,1740597042725,-500.0,0.0005315,120]
[354627824,1740597042735,-500.0,0.0005315,120]
[354627826,1740597042744,-338.68,0.0005315,120]
[354627828,1740597042757,-500.0,0.0005315,120]
[354627830,1740597042767,-2497.68,0.0005315,120]
[354627831,1740597042777,-500.0,0.0005315,120]
[354627833,1740597042787,-958.02,0.0005315,120]
[354627835,1740597042797,-272.66,0.000532,30]
[354627837,1740597042806,-583.3,0.000532,30]
[354627839,1740597042817,-500.0,0.00053273,10]
[354627841,1740597042837,-500.0,0.00053273,10]
[354627843,1740597042850,-500.0,0.00053273,10]
[354627845,1740597042860,-500.77884374,0.00053273,10]
[354627847,1740597042870,-500.0,0.00053273,10]
[354627849,1740597042879,-4731.43951456,0.0005329,5]
[354627851,1740597042889,-254.12114868,0.00053299,31]
[354627853,1740597042899,-151.0,0.000533,26]
[354627855,1740597042908,-1855548.22624061,0.000533,30]
[354628083,1740597044999,-133251.91447939,0.000533,30]
[354628084,1740597045015,-743.4514805,0.000533,30]
[354628179,1740597046063,-99321.08445891,0.000533,30]
[354628182,1740597046079,-168752.6137592,0.000533,30]
[354628189,1740597046129,-500.0,0.00052054,120]
[354628191,1740597046140,-500.0,0.00052054,120]
[354628193,1740597046150,-149.079344,0.00053034,120]
[354628195,1740597046163,-246.920656,0.00053034,120]
[354628198,1740597046173,-691.52116,0.000533,30]
[354628200,1740597046186,-148600.15799907,0.000533,30]
[354628374,1740597047864,-14022.989178,0.000533,30]
[354628377,1740597047884,-264.45773132,0.000533,30]
[354628379,1740597047895,-342.32794281,0.000533,30]
[354628381,1740597047907,-318.63610174,0.000533,30]
[354628384,1740597047919,-339.85267622,0.000533,30]
[354629886,1740597066034,-619.78630956,0.0005,120]
[354629887,1740597066050,-8273.09604249,0.0005,120]
[354629888,1740597066059,-500.0,0.00052054,120]
[354629889,1740597066069,-500.0,0.00052054,120]
[354629890,1740597066079,-500.0,0.00052054,120]
[354629891,1740597066088,-500.0,0.00052328,120]
[354629892,1740597066097,-500.0,0.00052602,120]
[354629893,1740597066107,-500.0,0.00052876,120]
[354629894,1740597066116,-500.0,0.0005315,120]
[354629895,1740597066125,-158822.13805479,0.000533,30]
[354629896,1740597067529,-88921.12128014,0.000533,30]
[354629897,1740597067586,-20.77579892,0.000533,30]
[354629898,1740597067598,-845.93598594,0.000533,30]
[354629899,1740597067780,-500.0,0.00052054,120]
[354629900,1740597067791,-500.0,0.00052054,120]
[354629901,1740597067802,-500.0,0.00052054,120]
[354629902,1740597067812,-156740.14859146,0.000533,30]
[354629903,1740597067959,-2372.227974,0.000533,30]
[354629904,1740597067971,-20603.94119783,0.000533,30]
[354629905,1740597072940,-43414.06104,0.000533,30]
[354629906,1740597844354,5315.53577429,0.00027397,30]